Cogmind - Beta 16 --- EXPLORER MODE // 2025.12.09 @ 15:27:54 Player: K.K.Y. Result: Destroyed by IC-7FN(R) with Subdweller Laser Performance ------------- Evolutions (0) 0 Regions Visited (3) 600 Robots Destroyed (29) 145 Value Destroyed (550) 550 Prototype IDs (12) 240 Alien Tech Used (0) 0 Bonus (0) 0 TOTAL SCORE: 1535 Bonus ------- None Cogmind --------- Core Integrity 0/250 Matter 288/300 Energy 89/100 System Corruption 1% Temperature Cool (6) Movement Treading (160) Location -10/Subcaves Parts ------- > --- POWER (1) -------- (None) > --- PROPULSION (3) --- Spiked Treads > --- UTILITY (2) ------ Structural Scanner > --- WEAPON (2) ------- (None) > --- INVENTORY (5) ---- Sensor Array Improved Terrain Scanner Seismic Detector Datajack Peak State ------------ > --- POWER ------------ (None) > --- PROPULSION ------- Flight Unit Flight Unit Flight Unit > --- UTILITY ---------- Small Storage Unit Structural Scanner > --- WEAPON ----------- Powered Cannon > --- INVENTORY -------- Spiked Treads Flight Unit Flight Unit Sensor Array Improved Terrain Scanner Seismic Detector Datajack [Rating: 20] Favorites ----------- Power Ion Engine Engine Ion Engine Propulsion Flight Unit Treads Spiked Treads Wheel Wheel Flight Unit Flight Unit Utility Small Storage Unit Device Structural Scanner Storage Small Storage Unit Weapon Beam Rifle Energy Gun Beam Rifle Energy Cannon Powered Cannon Special Weapon Mining Laser Build | -11 -10 -10 -10 ------- Run | Yrd Mat Min Sub Slots Evolved 1 | . 1 . . Power . | . . . . Propulsion 1 | . 1 . . Utility . | . . . . Weapon . | . . . . Parts Attached 22 | 4 8 6 4 Power 3 | . 1 2 . Engine 3 | . 1 2 . Core . | . . . . Reactor . | . . . . Propulsion 9 | 1 2 4 2 Treads 1 | . . . 1 Leg . | . . . . Wheel 3 | 1 2 . . Hover . | . . . . Flight 5 | . . 4 1 Utility 3 | 1 2 . . Device 2 | . 2 . . Storage 1 | 1 . . . Processor . | . . . . Hackware . | . . . . Protection . | . . . . Artifact . | . . . . Weapon 7 | 2 3 . 2 Energy Gun 5 | 2 3 . . Energy Cannon 1 | . . . 1 Ballistic Gun . | . . . . Ballistic Cannon . | . . . . Launcher . | . . . . Special Weapon 1 | . . . 1 Impact Weapon . | . . . . Slashing Weapon . | . . . . Piercing Weapon . | . . . . Special Melee Weapon . | . . . . Unidentified Prototypes . | . . . . Parts Lost 12 | . 2 1 9 Power . | . . . . Propulsion 8 | . 2 1 5 Utility 1 | . . . 1 Weapon 3 | . . . 3 Highest Loss Streak 7 | . 2 1 7 To Critical Strikes . | . . . . Average Backups 7 | 3 7 8 6 Power . | . . . . Propulsion 1 | . . 1 2 Utility 4 | 2 4 4 3 Weapon . | . 1 1 . Tool/Special . | . . . . Unused Backups 8 | . 2 2 4 Power 1 | . . 1 . Propulsion . | . . . . Utility 5 | . 1 1 3 Weapon 1 | . 1 . . Tool/Special 1 | . . . 1 Average Slot Usage (%) 76 | . 81 77 70 Engine 4 | . 9 5 . Wheel 8 | . 24 2 . Flight 17 | . . 19 32 Device 10 | . 9 12 11 Storage 11 | . 12 12 10 Energy Gun 18 | . 25 25 5 Energy Cannon 2 | . . . 5 Peak Build Rating 20 | 5 9 11 20 Average Rating 10 | 2 8 9 14 On Entrance 6 | . 5 9 10 Avg Prop Armor Cover (%) 6 | . . . 6 Naked Turns . | . . . . Heaviest Build 17 | 8 17 17 15 Greatest Support 30 | 10 30 12 20 Greatest Overweight (x) 5 | . 1 5 1 Average Overweight (x) . | . . . . Largest Inventory Capacity 8 | 8 8 8 8 Average Capacity 7 | 6 8 8 7 Most Carried 8 | 7 8 8 8 Average Carried 7 | 4 7 7 6 Final Capacity 8 | 8 8 8 5 Final Carried 8 | 7 8 8 4 Class Distribution -------------------- 92% | Hacker-Mutant 7% | Scavenger-Mutant Dominant Class ---------------- Hacker-Mutant | -10/Materials Hacker-Mutant | -10/Mines Hacker-Mutant | -10/Subcaves Resources | -11 -10 -10 -10 ----------- Run | Yrd Mat Min Sub Matter Collected 412 | 240 110 55 7 Remotely . | . . . . Salvage Created 1000 | 149 457 312 82 Parts 53 | 9 29 11 4 Haulers Intercepted 2 | . 2 . . Recyclers Shooed . | . . . . Parts Field Recycled . | . . . . Retrieved Matter . | . . . . Parts Self-Destructed . | . . . . Prevented . | . . . . Parts Restored . | . . . . Kills | -11 -10 -10 -10 ------- Run | Yrd Mat Min Sub Combat Hostiles Destroyed 17 | . 9 6 2 Guns 16 | . 9 5 2 Classes Destroyed 9 | 2 5 1 1 Tunneler 3 | 3 . . . Hauler 2 | . 2 . . Recycler 3 | 1 . 2 . Mechanic 1 | . 1 . . Watcher 3 | . 3 . . Swarmer 8 | . 4 4 . Grunt 5 | . 5 . . Sentry 2 | . . 2 . Subdweller 2 | . . . 2 Best Kill Streak 5 | 2 5 2 2 Combat Bots Only 4 | . 4 2 2 Max Kills in Single Turn 1 | 1 1 1 1 Gunslinging . | . . . . Exploded . | . . . . Melee . | . . . . Uniques/NPCs Destroyed . | . . . . Combat | -11 -10 -10 -10 -------- Run | Yrd Mat Min Sub Hostile Shots Fired 163 | . 53 34 76 Missed 45 | . 11 9 25 Hits 118 | . 42 25 51 Projectile 118 | . 42 25 51 Critical Strikes 4 | . 3 1 . Damage Taken 1213 | . 308 206 699 Core 256 | . 67 48 141 Absorbed by Shields . | . . . . Ignored by Resistances 744 | . 200 130 414 Core Remaining (%) 100 | 100 . . . Volleys Fired 108 | 8 47 23 30 Largest 2 | 2 2 2 2 Hottest 156 | 90 112 112 156 Shots Fired 192 | 16 94 46 36 Gun 171 | 16 94 46 15 Cannon 16 | . . . 16 Launcher . | . . . . Special 5 | . . . 5 Kinetic . | . . . . Thermal 192 | 16 94 46 36 Explosive . | . . . . Electromagnetic . | . . . . Robot Hit Streak 21 | 9 15 21 17 Robot Miss Streak 3 | 1 3 1 . Penetration Max . | . . . . Secondary Targets 4 | . 3 1 . Max Gunslinging Chain 1 | . 1 1 . Shots Hit Robots 135 | 13 69 40 13 Core Hits 44 | 5 25 10 4 Critical Kills . | . . . . Critical Parts Destroyed . | . . . . Critical Strikes 9 | 2 4 2 1 Burn 9 | 2 4 2 1 Melee Attacks . | . . . . Impact . | . . . . Slashing . | . . . . Piercing . | . . . . Sneak Attacks . | . . . . Combat Hostiles . | . . . . Follow-up Attacks . | . . . . Damage Inflicted 1838 | 155 853 584 246 Guns 1722 | 155 853 584 130 Cannons 92 | . . . 92 Explosions . | . . . . Melee . | . . . . Ramming . | . . . . Kinetic . | . . . . Thermal 1838 | 155 853 584 246 Explosive . | . . . . Electromagnetic . | . . . . Impact . | . . . . Slashing . | . . . . Piercing . | . . . . Highest Corruption 1 | . 1 1 1 Average Corruption 1 | . 1 1 1 Corruption Purged . | . . . . Corruption Blocked . | . . . . Effects 12 | . 2 5 5 Matter Fused 2 | . . . 2 Heat Flow Errors 1 | . . 1 . Energy Discharges 4 | . . 2 2 Data Loss (minor) 1 | . . 1 . Alerts 4 | . 2 1 1 Overload Shots . | . . . . Overflow Damage . | . . . . Projectiles . | . . . . Explosions . | . . . . Melee . | . . . . Knockbacks . | . . . . Impact . | . . . . Kinetic . | . . . . Secondary . | . . . . Self-Inflicted Damage . | . . . . Shots . | . . . . Rammed . | . . . . Targets Rammed . | . . . . Kicked . | . . . . Crushed . | . . . . Highest Temperature 447 | 35 414 447 3 Average Temperature 124 | 15 119 152 2 Received Heat Transfer 681 | . 279 144 258 Effects 3 | . 3 . . Shutdowns 1 | . 1 . . Energy Bleed 2 | . 2 . . Siege Activations . | . . . . Martial Activations . | . . . . Shielding Activations . | . . . . Robots Disrupted . | . . . . Combat Hostiles . | . . . . Robots Corrupted . | . . . . Combat Hostiles . | . . . . Parts Fried . | . . . . Impact Corruptions . | . . . . Robots Melted 2 | . 1 1 . Combat Hostiles 1 | . . 1 . Parts Melted 22 | 1 12 7 2 Heat Transferred 5192 | 557 2550 1628 457 Parts Sabotaged . | . . . . Parts Stolen . | . . . . Parts Stripped . | . . . . Power Chain Reactions . | . . . . Alert | -11 -10 -10 -10 ------- Run | Yrd Mat Min Sub Maximum Alert Level . | . . . . Low Security (%) 100 | 100 100 100 . Level 1 . | . . . . Level 2 . | . . . . Level 3 . | . . . . Level 4 . | . . . . Level 5 . | . . . . High Security . | . . . . Max Security . | . . . . Peak Influence 85 | 10 85 50 . Initial . | . . . . Average 8 | 2 12 4 . Influence Increases 442 | 20 272 150 . Destroy 0b10 Robot/C 300 | . 180 120 . Destroy 0b10 Robot/NC 60 | 20 30 10 . Destroy Leader 70 | . 50 20 . Successful Hack 12 | . 12 . . Influence Decreases 442 | 20 272 150 . Time Decay 422 | 20 262 140 . Lost Part 20 | . 10 10 . Squads Dispatched . | . . . . Investigation . | . . . . Extermination . | . . . . Reinforcement . | . . . . Assault . | . . . . Garrison . | . . . . Intercept . | . . . . Searches Triggered . | . . . . Construction Impeded . | . . . . Haulers Reinforced . | . . . . Active Scanning Responses . | . . . . Cargo Convoy Interrupts . | . . . . Stealth | -11 -10 -10 -10 --------- Run | Yrd Mat Min Sub Distress Signals 2 | . 2 . . Communications Jammed . | . . . . Distress Signals . | . . . . Times Spotted 26 | . 17 5 4 Peak Tracking Total 5 | . 5 2 2 Tactical Retreats . | . . . . Traps | -11 -10 -10 -10 ------- Run | Yrd Mat Min Sub Traps Triggered 3 | . 2 . 1 Indirectly . | . . . . Trap Hack Attempts . | . . . . Triggered . | . . . . Disarmed . | . . . . Reprogrammed . | . . . . Reused . | . . . . Traps Extracted . | . . . . Installed . | . . . . Triggered . | . . . . Machines | -11 -10 -10 -10 ---------- Run | Yrd Mat Min Sub Machines Disabled 1 | . . . 1 Max in Single Turn 1 | . . . 1 Machines Repaired . | . . . . Machines Dismantled . | . . . . Machines Sabotaged . | . . . . Overloaded Fab Kills . | . . . . Hacking | -11 -10 -10 -10 --------- Run | Yrd Mat Min Sub Machines Accessed 11 | . 9 . 2 Terminals 7 | . 7 . . Fabricators . | . . . . Repair Stations . | . . . . Recycling Units 2 | . 2 . . Scanalyzers . | . . . . Garrison Access . | . . . . Total Hacks 23 | . 17 . 6 Successful 17 | . 11 . 6 Failed 6 | . 6 . . Catastrophic . | . . . . Database Lockouts . | . . . . Manual 8 | . 8 . . Terminals 10 | . 10 . . Fabricators . | . . . . Repair Stations . | . . . . Recycling Units 7 | . 7 . . Scanalyzers . | . . . . Garrison Access . | . . . . Terminal Hacks 7 | . 1 . 6 Record 5 | . . . 5 Robot Analysis 1 | . 1 . . Proto ID Catalog 1 | . . . 1 Fabricator Hacks . | . . . . Repair Station Hacks . | . . . . Recycling Unit Hacks 2 | . 2 . . Retrieve Components 2 | . 2 . . Scanalyzer . | . . . . Garrison Access Hacks . | . . . . Unauthorized Hacks 8 | . 8 . . Terminals 7 | . 7 . . Botnet 7 | . 7 . . Fabricators . | . . . . Repair Stations . | . . . . Recycling Units 1 | . 1 . . Reject 1 | . 1 . . Scanalyzers . | . . . . Garrison Access . | . . . . Data Cores Recovered . | . . . . Used . | . . . . Hacking Detections 6 | . 6 . . Full Trace Events 2 | . 2 . . Feedback Events . | . . . . Feedback Blocked . | . . . . Robot Schematics Acquired . | . . . . Robots Built . | . . . . Authchips . | . . . . Time . | . . . . Total Robot Build Rating . | . . . . Part Schematics Acquired . | . . . . Parts Built . | . . . . Authchips . | . . . . Time . | . . . . Total Part Build Rating . | . . . . Part Studies Acquired . | . . . . Parts Repaired . | . . . . Time . | . . . . Parts Recycled . | . . . . Recycled Matter . | . . . . Retrieved Matter . | . . . . Retrieved Components . | . . . . Parts Scanalyzed . | . . . . Part Schematics Acquired . | . . . . Parts Damaged . | . . . . Bothacking | -11 -10 -10 -10 ------------ Run | Yrd Mat Min Sub Used RIF Installer . | . . . . Robots Hacked . | . . . . Non-combat . | . . . . Combat . | . . . . Robot Hacks Applied . | . . . . Relay Couplers Released . | . . . . Fabnet Peak Effective % . | . . . . Robots Rewired . | . . . . Allies Hacked . | . . . . Hacks Repelled . | . . . . Allies | -11 -10 -10 -10 -------- Run | Yrd Mat Min Sub Total Allies . | . . . . Largest Group . | . . . . Highest-Rated Group . | . . . . Highest-Rated Ally . | . . . . Total Orders . | . . . . Ally Attacks . | . . . . Total Damage . | . . . . Kills . | . . . . Allies Corrupted . | . . . . Allies Melted . | . . . . Intel | -11 -10 -10 -10 ------- Run | Yrd Mat Min Sub Active Infowar (turns) 2254 | . 656 760 838 Structural 2219 | . 621 760 838 ECM 35 | . 35 . . Robot Analysis Total 1 | . 1 . . Derelict Logs Recovered . | . . . . Drone Launches . | . . . . Drone Recoveries . | . . . . Exploration | -11 -10 -10 -10 ------------- Run | Yrd Mat Min Sub Turns Passed 2509 | 84 827 760 838 Spaces Moved 1991 | 74 738 606 573 Core 93 | 44 . 49 . Treads 10 | . . . 10 Legs . | . . . . Wheels 913 | 30 738 145 . Hover . | . . . . Flight 975 | . . 412 563 Fastest Speed 34 | 50 80 34 34 Average Speed 73 | 62 86 70 61 Slowest Speed 360 | 80 95 360 160 Overloaded Moves . | . . . . Propulsion Burnouts . | . . . . Robots Hopped 9 | . . 9 . Potential Cave-ins . | . . . . Cave-ins Triggered . | . . . . Exploration Rate (%) 59 | 3 98 100 37 Regions Visited 3 Branch Regions 2 Pre-discovered Areas 2 | . . 1 1 Known Exits Taken 3 | 1 1 1 . Unknown Exits Taken . | . . . . Scrap Searched . | . . . . Spaces Dug 4 | . . . 4 Terrain Destroyed 5 | . . . 5 Melee . | . . . . Projectile 5 | . . . 5 AOE . | . . . . Terrain Rammed . | . . . . Walls Destroyed . | . . . . Machines Disabled . | . . . . Actions | -11 -10 -10 -10 --------- Run | Yrd Mat Min Sub Total 2822 | 94 830 884 1014 Wait 673 | . 23 249 401 Move 1970 | 73 737 587 573 Hop 9 | . . 9 . Pick Up 21 | 9 6 3 3 Fast Attach 11 | 2 5 3 1 Attach 9 | 2 3 1 3 Detach 2 | . 1 1 . Swap 6 | . 3 2 1 Drop 13 | . 5 6 2 Fire 108 | 8 47 23 30 Melee . | . . . . Ram . | . . . . Kick . | . . . . Crush . | . . . . Escape Stasis . | . . . . Rewire . | . . . . Trap . | . . . . Miscellaneous . | . . . . Route ------- -11/Scrapyard -10/Materials (discovered 5 exits: *Mat x3 / *Min / *Sub) -10/Mines (discovered 3 exits: *Mat x2 / *Sub) -10/Subcaves History --------- Turn | Location | Event 7 | -11/Scrapyard | Identified exit to Materials 7 | -11/Scrapyard | Discovered exit to Materials (range 16) 85 | -11/Scrapyard | Entered Materials 85 | -10/Materials | Evolved 1 slot: Propulsion x1 210 | -10/Materials | Identified exit to Mines 210 | -10/Materials | Discovered exit to Mines (range 7) 289 | -10/Materials | Identified exit to Subcaves 289 | -10/Materials | Discovered exit to Subcaves (range 7) 309 | -10/Materials | Build established: Hacker-Mutant 436 | -10/Materials | Identified exit to Materials 436 | -10/Materials | Discovered exit to Materials (range 16) 676 | -10/Materials | Discovered exit to Materials (range 5) 771 | -10/Materials | Discovered exit to Materials (range 15) 912 | -10/Materials | Entered Mines 930 | -10/Mines | Received a Rocket Launcher from a helpful Derelict 1028 | -10/Mines | Discovered exit to Materials (range 6) 1031 | -10/Mines | Learned location of Storage (-7) 1409 | -10/Mines | Discovered exit to Materials (range 8) 1671 | -10/Mines | Discovered exit to Subcaves (range 6) 1672 | -10/Mines | Entered Subcaves 1673 | -10/Subcaves | Approached by a straggling Scientist 1736 | -10/Subcaves | Visited 4L-MR0's lab 1794 | -10/Subcaves | Found Powered Cannon 1865 | -10/Subcaves | Core integrity fell below 50% 1879 | -10/Subcaves | Visited Clippyterm 1880 | -10/Subcaves | Learned location of Extension (-6) 1880 | -10/Subcaves | Learned 40 Factory zone layouts 2025 | -10/Subcaves | Attached Powered Cannon, gained temporary slot: Power 2497 | -10/Subcaves | Core integrity fell below 20% 2510 | -10/Subcaves | Destroyed by IC-7FN(R) with Subdweller Laser Last Messages --------------- FV-3BO(c): "I think it's somewhere northeast of here" 02292_ U9-5SV(u) deconstructs Twisted Machinery. 02314_ Acquired Spk. Treads. 02318_ System corrupted: Energy discharge (-33). FV-3BO(c): "I think it's somewhere north of here" 02429_ The unstable cave ceiling collapses. FV-3BO(c): "I think it's somewhere north of here" 02439_ Flight Unit destroyed. 02465_ Sml. Storage Unit destroyed. 02468_ Acquired Flight Unit. 02473_ Flight Unit destroyed. 02483_ Acquired Spk. Treads. 02484_ Powered Cannon destroyed. 02484_ Temporary Power slot lost. 02486_ Flight Unit destroyed. Map ----- +----------------------------------------------------+ | ?????????????????????????????????????????????????? | | ?????????????????????????????????????????????????? | | ?????????????????????????????????????????????????? | | ?????????????????????????????????????????????????? | | ##########???????????????????????????????????????? | | ##################???????????????????????????????? | | #### ##########???????????????????????????????? | | ###???####???????????????????????? | | ############?????????????????????? | | ## ###### ####?????????????????????? | | #### # ##?????????????????????? | | ##### ###?????????????????????? | | ######??## #####??????????????????????? | | ########### #####???###????????????????? | | # ############# ##############????????????????? | | # # ##### ########### ##????????????????? | | ######" " ##????????????????? | | """"#####" " ##????????????????? | | ## #### "!"""#### #""##????????????????? | | ### ###### """"";## ######????????????????? | | ## ###### " "" R ######????????????????? | | ### ###?## """"" """#######??????????????? | | ## ######## """ "" "# #"##??????????????? | | ## ######### ""### " " "" ??????????????? | | #### ###### R" "" ""???????????????? | | ########@ " ##"????????????????? | | ### ###??##### ####????????????????? | | #### ## ###????#########?????????????????? | | ###################???????#####??????????????????? | | ##################???????????????????????????????? | | ?????????????????????????????????????????????????? | | ?????????????????????????????????????????????????? | | ?????????????????????????????????????????????????? | | ?????????????????????????????????????????????????? | | ?????????????????????????????????????????????????? | | ?????????????????????????????????????????????????? | | ?????????????????????????????????????????????????? | | ?????????????????????????????????????????????????? | | ?????????????????????????????????????????????????? | | ?????????????????????????????????????????????????? | | ?????????????????????????????????????????????????? | | ?????????????????????????????????????????????????? | | ?????????????????????????????????????????????????? | | | | | | | | | | | | | | | +----------------------------------------------------+ Best States ------------- Heat Dissipation 25 Energy Generation 10 Energy Capacity 250 Matter Stores 300 Matter Capacity 300 Sight Range 16 Terrain Scan Density 10 ECM Strength 1 Resistance: KI 35 Resistance: TH 35 Resistance: EX 35 Resistance: EM 35 Resistance: I 35 Resistance: S 35 Resistance: P 35 Evasion (%) 63 Recoil Reduction 1 Offensive Hacking 20 Item Schematics ----------------- None Robot Schematics ------------------ None Fabricated ------------ Nothing Repaired ---------- Nothing Studied --------- None Alien Tech Used ----------------- None Achievements -------------- None Challenges ------------ None Game ------ Seed FieldPulseModule Manual? 0 Play Time 00:16:08 Cumulative 182.3 hours Start 2025.12.09 @ 15:12:22 End 2025.12.09 @ 15:27:54 Sessions 1 Manual Loads 0 Difficulty Explorer Special Mode None Game No. 259 Rogue 0 Adventurer 0 Explorer 259 Win Type - Total 0 Types 0/0/0/0/0/0/0/0/0/0 Lore% 70 Gallery% 67 Achievement% 53 Wizard Run 0 Options --------- Layout 1 ASCII 0 Keyboard 0 Movement Mouse Keybinds 0 Fullscreen 1 Font 24/Smallcaps Map View 50x35 Zoom Use 0% Tactical HUD 1 Map Filters NONE Filters NONE Steam 1 RUN: 37a622df-27e4-46bb-9d39-b774e97497f1